fUST/lending_fUST_20240823
["ID","MTS","AMOUNT","RATE_DAILY","PERIOD"]
[335654061,1724401843278,-620.56189747,0.00016438,2]
[335654062,1724401843288,-500.0,0.00016438,2]
[335654063,1724401843298,-871.75,0.00016438,2]
[335654064,1724401843307,-503.40141786,0.00016438,2]
[335654065,1724401843316,-858.99,0.00016438,2]
[335654066,1724401843326,-286.46640701,0.00016438,2]
[335654067,1724401843339,-223.47595921,0.00016438,2]
[335654068,1724401843349,-500.0,0.00016438,2]
[335654069,1724401843360,-1386.71,0.00016438,2]
[335654070,1724401843373,-500.0,0.00016438,2]
[335654071,1724401843382,-500.0,0.00016438,2]
[335654072,1724401843393,-997.54,0.00016438,2]
[335654073,1724401843404,-500.0,0.00016438,2]
[335654074,1724401843416,-500.0,0.00016438,2]
[335654075,1724401843427,-500.0,0.00016438,2]
[335654076,1724401843440,-500.0,0.00016438,2]
[335654077,1724401843453,-1111.84,0.00016438,2]
[335654078,1724401843653,-784.09,0.00016438,2]
[335654079,1724401843665,-766.88,0.00016438,2]
[335654080,1724401843676,-500.0,0.00016438,2]
[335654081,1724401843686,-500.0,0.00016438,2]
[335654082,1724401843696,-554.51,0.00016438,2]
[335654083,1724401843707,-2222.24,0.00016438,2]
[335654084,1724401843716,-610.13,0.00016438,2]
[335654085,1724401843726,-500.0,0.00016438,2]
[335654086,1724401843736,-500.0,0.00016438,2]
[335654087,1724401843746,-500.0,0.00016438,2]
[335654088,1724401843755,-511.12299825,0.00016438,2]
[335654089,1724401843765,-500.0,0.00016438,2]
[335654090,1724401843775,-811.3,0.00016438,2]
[335654091,1724401843787,-500.0,0.00016438,2]
[335654092,1724401843797,-500.0,0.00016438,2]
[335654093,1724401843806,-500.0,0.00016438,2]
[335654094,1724401843816,-615.36,0.00016438,2]
[335654095,1724401843828,-1038.35,0.00016438,2]
[335654096,1724401843839,-573.88,0.00016438,2]
[335654097,1724401843850,-500.0,0.00016438,2]
[335654098,1724401843859,-960.74,0.00016438,2]
[335654099,1724401843870,-500.0,0.00016438,2]
[335654100,1724401843880,-500.0,0.00016438,2]
[335654101,1724401843889,-815.72,0.00016438,2]
[335654102,1724401843900,-500.0,0.00016438,2]
[335654103,1724401843910,-500.0,0.00016438,2]
[335654104,1724401843920,-500.0,0.00016438,2]
[335654105,1724401843930,-1510.69,0.00016438,2]
[335654106,1724401843939,-500.0,0.00016438,2]
[335654107,1724401843950,-500.0,0.00016438,2]
[335654108,1724401843961,-500.0,0.00016438,2]
[335654109,1724401843971,-198.38463446,0.00016438,2]
[335654110,1724401844206,-301.61536554,0.00016438,2]
[335654111,1724401844217,-500.0,0.00016438,2]
[335654112,1724401844227,-500.0,0.00016438,2]
[335654113,1724401844236,-696.1,0.00016438,2]
[335654114,1724401844245,-500.0,0.00016438,2]
[335654115,1724401844255,-601.35,0.00016438,2]
[335654116,1724401844267,-1302.37,0.00016438,2]
[335654117,1724401844278,-500.0,0.00016438,2]
[335654118,1724401844288,-500.0,0.00016438,2]
[335654119,1724401844298,-500.0,0.00016438,2]
[335654120,1724401844307,-500.0,0.00016438,2]
[335654121,1724401844317,-500.0,0.00016438,2]
[335654122,1724401844328,-500.0,0.00016438,2]
[335654123,1724401844339,-500.0,0.00016438,2]
[335654124,1724401844350,-500.0,0.00016438,2]
[335654125,1724401844360,-413.05296044,0.00016438,2]
[335654126,1724401844374,-500.0,0.00016438,2]
[335654127,1724401844384,-776.68,0.00016438,2]
[335654128,1724401844394,-500.0,0.00016438,2]
[335654129,1724401844405,-618.01,0.00016438,2]
[335654130,1724401844418,-500.0,0.00016438,2]
[335654131,1724401844429,-500.0,0.00016438,2]
[335654132,1724401844439,-500.0,0.00016438,2]
[335654133,1724401844450,-1166.74,0.00016438,2]
[335654134,1724401844468,-508.49725446,0.00016438,2]
[335654135,1724401844478,-500.0,0.00016438,2]
[335654136,1724401844488,-500.0,0.00016438,2]
[335654137,1724401844497,-1335.7,0.00016438,2]
[335654138,1724401844508,-500.0,0.00016438,2]
[335654139,1724401844518,-953.65,0.00016438,2]
[335654140,1724401844528,-651.15,0.00016438,2]
[335654141,1724401844538,-500.0,0.00016438,2]
[335654142,1724401844549,-500.0,0.00016438,2]
[335654143,1724401844559,-500.0,0.00016438,2]
[335654144,1724401844569,-500.0,0.00016438,2]
[335654145,1724401844579,-500.0,0.00016438,2]
[335654146,1724401844589,-500.0,0.00016438,2]
[335654147,1724401844600,-500.0,0.00016438,2]
[335654148,1724401844610,-501.3985454,0.00016438,2]
[335654149,1724401844621,-542.41031267,0.00016438,2]
[335654150,1724401844631,-500.0,0.00016438,2]
[335654151,1724401844641,-500.0,0.00016438,2]
[335654152,1724401844650,-500.0,0.00016438,2]
[335654153,1724401844660,-1512.69,0.00016438,2]
[335654154,1724401844671,-3234.03,0.00016438,2]
[335654155,1724401844681,-500.0,0.00016438,2]
[335654156,1724401844690,-1047.67,0.00016438,2]
[335654157,1724401844700,-500.0,0.00016438,2]
[335654158,1724401844712,-500.0,0.00016438,2]
[335654159,1724401844722,-500.0,0.00016438,2]
[335654160,1724401844732,-500.0,0.00016438,2]
[335654161,1724401844742,-841.32,0.00016438,2]
[335654162,1724401844752,-500.0,0.00016438,2]
[335654163,1724401844763,-663.85,0.00016438,2]
[335654164,1724401844773,-500.0,0.00016438,2]
[335654165,1724401844783,-500.0,0.00016438,2]
[335654166,1724401844794,-832.05,0.00016438,2]
[335654167,1724401844804,-500.0,0.00016438,2]
[335654168,1724401844813,-500.0,0.00016438,2]
[335654169,1724401844823,-500.77567429,0.00016438,2]
[335654170,1724401844832,-701.53,0.00016438,2]
[335654171,1724401844842,-500.0,0.00016438,2]
[335654172,1724401844852,-500.0,0.00016438,2]
[335654173,1724401844861,-500.0,0.00016438,2]
[335654174,1724401844871,-718.89,0.00016438,2]
[335654175,1724401844881,-500.0,0.00016438,2]
[335654176,1724401844891,-500.0,0.00016438,2]
[335654177,1724401844901,-500.0,0.00016438,2]
[335654178,1724401844911,-500.0,0.00016438,2]
[335654179,1724401844921,-500.0,0.00016438,2]
[335654180,1724401844930,-1421.47,0.00016438,2]
[335654181,1724401844941,-500.0,0.00016438,2]
[335654182,1724401844951,-500.0,0.00016438,2]
[335654183,1724401844970,-500.0,0.00016438,2]
[335654184,1724401844980,-500.0,0.00016438,2]
[335654185,1724401844989,-1112.65,0.00016438,2]
[335654186,1724401844999,-500.0,0.00016438,2]
[335654187,1724401845009,-500.0,0.00016438,2]
[335654188,1724401845019,-500.0,0.00016438,2]
[335654189,1724401845029,-500.0,0.00016438,2]
[335654190,1724401845039,-500.0,0.00016438,2]
[335654191,1724401845048,-500.0,0.00016438,2]
[335654192,1724401845058,-500.0,0.00016438,2]
[335654193,1724401845068,-500.0,0.00016438,2]
[335654194,1724401845077,-1226.14,0.00016438,2]
[335654195,1724401845086,-1010.24,0.00016438,2]
[335654196,1724401845096,-500.0,0.00016438,2]
[335654197,1724401845105,-509.00803805,0.00016438,2]
[335654198,1724401845115,-103.44601439,0.00016438,2]
[335654202,1724401845897,-396.55398561,0.00016438,2]
[335654203,1724401845907,-500.0,0.00016438,2]
[335654204,1724401845916,-500.0,0.00016438,2]
[335654205,1724401845926,-500.0,0.00016438,2]
[335654206,1724401845935,-500.0,0.00016438,2]
[335654207,1724401845944,-49.32601439,0.00016438,2]
[335654208,1724401845958,-676.19398561,0.00016438,2]
[335654209,1724401845969,-2835.04,0.00016438,2]
[335654210,1724401845979,-500.0,0.00016438,2]
[335654211,1724401845990,-500.0,0.00016438,2]
[335654212,1724401846002,-618.19,0.00016438,2]
[335654213,1724401846013,-581.8,0.00016438,2]
[335654214,1724401846024,-500.0,0.00016438,2]
[335654215,1724401846035,-500.0,0.00016438,2]
[335654216,1724401846046,-500.0,0.00016438,2]
[335654217,1724401846056,-612.56,0.00016438,2]
[335654218,1724401846067,-500.0,0.00016438,2]
[335654219,1724401846077,-500.0,0.00016438,2]
[335654220,1724401846087,-500.0,0.00016438,2]
[335654221,1724401846097,-500.0,0.00016438,2]
[335654222,1724401846108,-859.99,0.00016438,2]
[335654223,1724401846118,-500.0,0.00016438,2]
[335654224,1724401846130,-500.0,0.00016438,2]
[335654225,1724401846139,-500.0,0.00016438,2]
[335654226,1724401846150,-1981.73,0.00016438,2]
[335654227,1724401846160,-500.0,0.00016438,2]
[335654228,1724401846170,-634.99,0.00016438,2]
[335654229,1724401846181,-509.34574247,0.00016438,2]
[335654230,1724401846192,-500.0,0.00016438,2]
[335654231,1724401846204,-1527.33,0.00016438,2]
[335654232,1724401846214,-830.58,0.00016438,2]
[335654233,1724401846280,-500.0,0.00016438,2]
[335654234,1724401846290,-500.0,0.00016438,2]
[335654235,1724401846301,-856.1,0.00016438,2]
[335654236,1724401846310,-2358.57,0.00016438,2]
[335654237,1724401846320,-763.05,0.00016438,2]
[335654238,1724401846332,-1208.33,0.00016438,2]
[335654239,1724401846342,-1240.63,0.00016438,2]
[335654240,1724401846352,-500.0,0.00016438,2]
[335654241,1724401846363,-941.27,0.00016438,2]
[335654242,1724401846379,-727.29,0.00016438,2]
[335654243,1724401846390,-580.97,0.00016438,2]
[335654244,1724401846401,-1345.48,0.00016438,2]
[335654245,1724401846411,-500.90253299,0.00016438,2]
[335654246,1724401846422,-500.0,0.00016438,2]
[335654247,1724401846434,-653.19688455,0.00016438,2]
[335654248,1724401847084,-534.53311545,0.00016438,2]
[335654249,1724401847095,-500.0,0.00016438,2]
[335654250,1724401847105,-500.0,0.00016438,2]
[335654251,1724401847116,-1297.42051085,0.00016438,2]
[335654252,1724401847128,-1728.33948915,0.00016438,2]
[335654253,1724401847138,-3025.76,0.00016438,2]
[335654254,1724401847149,-3025.76,0.00016438,2]
[335654255,1724401847158,-3025.76,0.00016438,2]
[335654256,1724401847168,-500.0,0.00016438,2]
[335654257,1724401847179,-3025.76,0.00016438,2]
[335654258,1724401847189,-3025.76,0.00016438,2]
[335654259,1724401847199,-500.0,0.00016438,2]
[335654260,1724401847209,-3025.76,0.00016438,2]
[335654261,1724401847219,-3025.76,0.00016438,2]
[335654262,1724401847230,-3025.76,0.00016438,2]
[335654263,1724401847241,-500.0,0.00016438,2]
[335654264,1724401847251,-3025.76,0.00016438,2]
[335654265,1724401847261,-711.07,0.00016438,2]
[335654266,1724401847272,-3025.76,0.00016438,2]
[335654267,1724401847283,-3025.76,0.00016438,2]
[335654268,1724401847292,-3025.76,0.00016438,2]
[335654269,1724401847302,-500.0,0.00016438,2]
[335654270,1724401847312,-3025.76,0.00016438,2]
[335654271,1724401847322,-3025.76,0.00016438,2]
[335654272,1724401847333,-3025.76,0.00016438,2]
[335654273,1724401847344,-500.0,0.00016438,2]
[335654274,1724401847354,-500.0,0.00016438,2]
[335654275,1724401847366,-3025.76,0.00016438,2]
[335654276,1724401847380,-3025.76,0.00016438,2]
[335654277,1724401847390,-740.0,0.00016438,2]
[335654278,1724401847399,-3025.76,0.00016438,2]
[335654279,1724401847409,-3025.76,0.00016438,2]
[335654280,1724401847419,-500.0,0.00016438,2]
[335654281,1724401847429,-1995.00646883,0.00016438,2]
[335654282,1724401848206,-542.92202069,0.00016438,2]
[335654283,1724401869967,1074.0,0.00027,120]
[335654284,1724401902639,-895.0,0.00014245,2]
[335654287,1724401955291,-12537.0,0.00013971,2]
[335654294,1724401981660,-277.0,0.00013971,2]
[335654295,1724401992079,1806.96992668,0.00012111,2]
[335654296,1724401993575,180.0,0.000178,120]
[335654297,1724401993848,150.5,0.000178,120]
[335654298,1724401994041,180.0,0.0001779,120]
[335654300,1724401994508,180.0,0.0001778,120]
[335654301,1724401994976,150.5,0.0001779,120]
[335654302,1724401995009,180.0,0.0001878,120]
[335654303,1724401995447,180.0,0.0001877,120]
[335654304,1724401995478,150.5,0.0001778,120]
[335654305,1724401995913,150.5,0.0001878,120]
[335654306,1724401995943,180.0,0.0001876,120]
[335654307,1724401996609,180.0,0.0001916,120]
[335654308,1724401996643,150.5,0.0001877,120]
[335654309,1724401996882,180.0,0.0001915,120]
[335654310,1724401996911,150.5,0.0001876,120]
[335654311,1724401997348,180.0,0.000208,120]
[335654312,1724401997380,150.5,0.0001916,120]
[335654313,1724401997827,189.05,0.0002079,120]
[335654314,1724401997859,171.64,0.0001915,120]
[335654315,1724402002237,421.26778802,0.000269,120]
[335654316,1724402005638,258.33917251,0.00025,120]
[335654317,1724402008548,2537.00829931,0.00012111,2]
[335654318,1724402016607,896.81684895,0.00012111,2]
[335654319,1724402024844,3350.37518409,0.00012111,2]
[335654320,1724402050601,258.33917251,0.00025,120]
[335654325,1724402074404,200.05206441,0.0001468,60]
[335654326,1724402103232,446.98676617,0.00025,60]
[335654327,1724402103266,250.18,0.00027,120]
[335654328,1724402105382,796.52,0.00027,120]
[335654329,1724402113066,236.79,0.000178,120]
[335654330,1724402113333,959.0,0.000178,120]
[335654331,1724402113463,150.5,0.000178,120]
[335654332,1724402113574,161.0,0.000178,120]
[335654333,1724402113609,150.5,0.000178,120]
[335654334,1724402113875,959.0,0.0001779,120]
[335654335,1724402113979,150.5,0.0001779,120]
[335654336,1724402114038,150.5,0.000178,120]
[335654337,1724402114070,161.0,0.0001779,120]
[335654338,1724402114147,150.5,0.0001779,120]
[335654339,1724402114403,959.0,0.0001778,120]
[335654340,1724402114490,150.5,0.0001778,120]
[335654341,1724402114523,150.5,0.0001779,120]
[335654342,1724402114562,161.0,0.0001778,120]
[335654343,1724402114701,150.5,0.0001778,120]
[335654344,1724402114870,959.0,0.00018789,120]
[335654345,1724402115033,150.5,0.0001778,120]
[335654346,1724402115081,161.0,0.00018789,120]
[335654347,1724402115176,150.5,0.00018789,120]
[335654348,1724402115211,150.5,0.00018789,120]
[335654349,1724402115558,150.5,0.00018789,120]
[335654350,1724402115613,959.0,0.00018779,120]
[335654351,1724402115652,150.5,0.00018779,120]
[335654352,1724402115683,150.5,0.00018779,120]
[335654353,1724402115714,161.0,0.00018779,120]
[335654354,1724402116018,251.62,0.00018779,120]
[335654355,1724402116103,959.0,0.00018769,120]
[335654356,1724402116148,161.0,0.00018769,120]
[335654357,1724402116183,263.84,0.00018769,120]
[335654358,1724402116232,150.5,0.00018769,120]
[335654359,1724402116624,161.0,0.0001889,120]
[335654360,1724402117079,150.5,0.0001889,120]
[335654361,1724402117120,161.0,0.0001888,120]
[335654362,1724402117553,260.73,0.0001888,120]
[335654363,1724402117655,959.0,0.0001889,120]
[335654364,1724402118018,161.0,0.0002049,120]
[335654365,1724402119022,170.91,0.0002048,120]
[335654366,1724402119246,959.0,0.0001888,120]
[335654368,1724402119791,959.0,0.0002049,120]
[335654369,1724402120240,583.26,0.00027,120]
[335654370,1724402120274,965.36,0.0002048,120]
[335654371,1724402133226,1983.21177098,0.000269,120]
[335654372,1724402259111,495.85253841,0.000269,120]
[335654375,1724402289106,495.85253841,0.000269,120]
[335654377,1724402353352,357.0,0.000178,120]
[335654378,1724402353894,357.0,0.0001779,120]
[335654379,1724402354378,357.0,0.0001778,120]
[335654380,1724402354915,357.0,0.0001861,120]
[335654381,1724402355374,357.0,0.000186,120]
[335654382,1724402356084,357.0,0.0001859,120]
[335654383,1724402356339,357.0,0.00018789,120]
[335654384,1724402356802,357.0,0.00018779,120]
[335654385,1724402357280,357.0,0.0001999,120]
[335654386,1724402357848,362.86,0.0001998,120]
[335654387,1724402410135,258.33917251,0.000269,120]
[335654388,1724402425674,460.77250919,0.0001998,60]
[335654389,1724402451610,258.33917251,0.00025,120]
[335654390,1724402473158,383.97709099,0.00024218,60]
[335654393,1724402569674,500.0,0.00027,120]
[335654395,1724402575668,383.97709099,0.00024218,60]
[335654396,1724402576332,500.0,0.00027,120]
[335654398,1724402584092,500.0,0.00027,120]
[335654399,1724402593276,500.0,0.00027,120]
[335654400,1724402603517,500.0,0.00027,120]
[335654401,1724402611692,500.0,0.00027,120]
[335654402,1724402619442,500.0,0.00027,120]
[335654403,1724402625996,500.0,0.00027,120]
[335654405,1724402632162,500.0,0.00027,120]
[335654406,1724402633069,-300.0,0.00012596,2]
[335654407,1724402633091,-300.0,0.00012596,2]
[335654408,1724402633114,-24900.0,0.00012597,2]
[335654409,1724402633137,-7014.77930494,0.00012779,2]
[335654410,1724402633159,-17330.38228169,0.00012782,2]
[335654411,1724402633181,-8847.63316405,0.00012782,2]
[335654412,1724402633202,-9625.43408875,0.00012782,2]
[335654413,1724402633223,-1500.0,0.00012971,2]
[335654414,1724402633244,-181.77116057,0.00012985,2]
[335654415,1724402638262,500.0,0.00027,120]
[335654416,1724402645562,500.0,0.00027,120]
[335654417,1724402652364,500.0,0.00027,120]
[335654418,1724402659114,258.33917251,0.00027,120]
[335654419,1724402660265,500.0,0.00027,120]
[335654420,1724402669339,500.0,0.00027,120]
[335654421,1724402712804,500.0,0.00027,120]
[335654422,1724402713719,323.0,0.000178,120]
[335654423,1724402714193,323.0,0.0001779,120]
[335654424,1724402714898,323.0,0.0001778,120]
[335654425,1724402715204,323.0,0.0001861,120]
[335654426,1724402715699,323.0,0.000186,120]
[335654427,1724402716165,323.0,0.0001859,120]
[335654428,1724402716945,323.0,0.00018789,120]
[335654429,1724402717175,323.0,0.00018779,120]
[335654430,1724402717625,323.0,0.0001999,120]
[335654431,1724402718106,329.8,0.0001998,120]
[335654432,1724402724281,-159.6053676,0.00012494,2]
[335654433,1724402724303,-3093.89381195,0.00012898,2]
[335654434,1724402724326,-300.0,0.0001297,2]
[335654435,1724402724351,-300.0,0.0001297,2]
[335654436,1724402724375,-2143.62270035,0.00012971,2]
[335654437,1724402724398,-1766.78467746,0.00012971,2]
[335654438,1724402724420,-1613.76183123,0.00012985,2]
[335654439,1724402724441,-991.61536946,0.00012999,2]
[335654440,1724402724464,-780.35335208,0.00012999,2]
[335654441,1724402724487,-811.95291295,0.00012999,2]
[335654442,1724402724511,-223.54518659,0.00012999,2]
[335654443,1724402724535,-154.72922386,0.00012999,2]
[335654444,1724402724556,-154.9366117,0.00012999,2]
[335654445,1724402724577,-369.0,0.00013,2]
[335654446,1724402724598,-154.86014468,0.00013025,2]
[335654447,1724402724621,-222.93272349,0.00013025,2]
[335654448,1724402724643,-154.86434696,0.00013025,2]
[335654449,1724402724665,-422.40164092,0.00013025,2]
[335654450,1724402724686,-154.79103211,0.00013025,2]
[335654451,1724402724711,-246.76831466,0.00013025,2]
[335654452,1724402724735,-665.59514245,0.00013025,2]
[335654453,1724402724761,-155.00343958,0.00013025,2]
[335654454,1724402724787,-544.22652236,0.00013025,2]
[335654455,1724402724813,-602.00501387,0.00013025,2]
[335654456,1724402724838,-424.23192887,0.00013025,2]
[335654457,1724402724860,-160.47619997,0.00013025,2]
[335654458,1724402724882,-155.35283135,0.00013025,2]
[335654459,1724402724904,-404.50920595,0.00013051,2]
[335654460,1724402724927,-156.88380059,0.00013051,2]
[335654461,1724402724949,-157.11235205,0.00013051,2]
[335654462,1724402724972,-202.68009876,0.00013051,2]
[335654463,1724402724994,-535.87746482,0.00013051,2]
[335654464,1724402725017,-320.33274363,0.00013051,2]
[335654465,1724402725039,-154.79103211,0.00013051,2]
[335654466,1724402725061,-898.92251749,0.00013333,2]
[335654467,1724402725082,-154.72922386,0.00013333,2]
[335654468,1724402725103,-293.41433409,0.00013333,2]
[335654469,1724402725127,-495.24472626,0.00013333,2]
[335654470,1724402725150,-154.79103211,0.00013477,2]
[335654471,1724402725173,-521.41855438,0.00013496,2]
[335654472,1724402725194,-200.08220014,0.00013496,2]
[335654473,1724402725216,-154.72922386,0.00013497,2]
[335654474,1724402725237,-158.13895029,0.00013497,2]
[335654475,1724402725261,-2731.018857,0.00013589,2]
[335654476,1724402725284,-2128.81205104,0.00013596,2]
[335654477,1724402725304,-4731.05943392,0.00013597,2]
[335654478,1724402725326,-817.52040499,0.00013597,2]
[335654479,1724402725349,-77577.9731251,0.00013688,2]
[335654480,1724402725372,-155155.94625,0.00013689,2]
[335654481,1724402725396,-500.0,0.00013698,2]
[335654482,1724402725420,-500.0,0.00013698,2]
[335654483,1724402725442,-371.64930465,0.00013698,2]
[335654484,1724402725466,-566.03835993,0.00013698,2]
[335654485,1724402725490,-501.10334432,0.00013698,2]
[335654486,1724402725512,-500.0,0.00013698,2]
[335654487,1724402725546,-502.20150492,0.00013698,2]
[335654488,1724402725568,-500.0,0.00013698,2]
[335654489,1724402725594,-500.0,0.00013698,2]
[335654490,1724402725618,-210.22680005,0.00013698,2]
[335654491,1724402725640,-500.0,0.00013698,2]
[335654492,1724402725663,-500.0,0.00013698,2]
[335654493,1724402725686,-388.35838211,0.00013698,2]
[335654494,1724402725710,-500.0,0.00013698,2]
[335654495,1724402725732,-500.0,0.00013698,2]
[335654496,1724402725754,-453.97369087,0.00013698,2]
[335654497,1724402725779,-500.0,0.00013698,2]
[335654498,1724402725800,-500.0,0.00013698,2]
[335654499,1724402725823,-500.0,0.00013698,2]
[335654500,1724402725844,-328.21929898,0.00013698,2]
[335654501,1724402725866,-691.847037,0.00013699,2]
[335654502,1724402725888,-4095.08436823,0.00013699,2]
[335654504,1724402736169,-193.48067464,0.00012999,2]
[335654505,1724402740502,599.538732,0.00027,120]
[335654507,1724402758207,-376.18892904,0.00012999,2]
[335654508,1724402758229,-154.953206,0.00012999,2]
[335654509,1724402758250,-713.31241159,0.00012999,2]
[335654510,1724402758271,-729.07882833,0.00013051,2]
[335654511,1724402758293,-154.93369694,0.00013051,2]
[335654512,1724402758317,-154.72922386,0.00013496,2]
[335654513,1724402758337,-154.90241709,0.00013688,2]
[335654514,1724402758358,-500.0,0.00013698,2]
[335654515,1724402758379,-291.00473517,0.00013698,2]
[335654516,1724402758399,-23126.33701371,0.00013699,2]
[335654517,1724402771675,200.05206441,0.00013699,60]
[335654518,1724402808547,1000.0,0.00027,120]
[335654519,1724402829236,200.05206441,0.00016605,60]
[335654520,1724402832146,-998.9794786,0.00013698,2]
[335654521,1724402832169,-300.0,0.00013698,2]
[335654522,1724402832191,-300.0,0.00013698,2]
[335654523,1724402832212,-13699.41890774,0.00013699,2]
[335654524,1724402834231,-834.813,0.00013699,2]
[335654525,1724402847096,-99.54990292,0.00013699,2]
[335654526,1724402847116,-60.22408864,0.00013699,2]
[335654527,1724402850166,24900.0,0.00011888,2]
[335654529,1724402879207,200.05206441,0.00016605,60]
[335654530,1724402880274,569.90478431,0.00027,120]
[335654531,1724402883694,1000.0,0.00027,120]
[335654538,1724402928175,258.33917251,0.00027,120]
[335654544,1724402946133,-811.71027722,0.00013688,2]
[335654545,1724402946157,-210.35988185,0.00013697,2]
[335654546,1724402946181,-934.16422127,0.00013697,2]
[335654547,1724402946500,-300.0,0.00013697,2]
[335654548,1724402946525,-2531.35228298,0.00013698,2]
[335654549,1724402946546,-305.07401593,0.00013698,2]
[335654550,1724402946568,-154.72922386,0.00013698,2]
[335654551,1724402946588,-199.18376074,0.00013698,2]
[335654552,1724402946609,-154.88229937,0.00013698,2]
[335654553,1724402946630,-533.83987423,0.00013698,2]
[335654554,1724402946651,-197.33180704,0.00013698,2]
[335654555,1724402946672,-155.74950473,0.00013698,2]
[335654556,1724402946694,-154.72922386,0.00013698,2]
[335654557,1724402946715,-2668.63463466,0.00013699,2]
[335654558,1724402946736,-3000.0,0.00013699,2]
[335654559,1724402946758,-194.87445923,0.00013699,2]
[335654560,1724402946780,-191.92827295,0.00013792,2]
[335654561,1724402946801,-154.72922386,0.00013792,2]
[335654562,1724402946822,-221.67689865,0.00013792,2]
[335654563,1724402946843,-519.81475906,0.00013971,2]
[335654564,1724402946865,-188.54556586,0.00013971,2]
[335654565,1724402946886,-154.72922386,0.00013971,2]
[335654566,1724402946907,-330.972417,0.00013971,2]
[335654567,1724402946928,-544.22652236,0.00013971,2]
[335654568,1724402946949,-3092.67871107,0.00013971,2]
[335654569,1724402946970,-1908.04874971,0.00013971,2]
[335654570,1724402946991,-898.81779354,0.00014245,2]
[335654571,1724402947015,-780.046752,0.00014245,2]
[335654572,1724402947041,-845.02559825,0.00014245,2]
[335654573,1724402947063,-324.926342,0.00014247,2]
[335654574,1724402947085,-159.353542,0.00014247,2]
[335654575,1724402947106,-517.06534289,0.0001427,2]
[335654576,1724402947128,-500.0,0.0001427,2]
[335654577,1724402947149,-500.0,0.0001427,2]
[335654578,1724402947171,-500.0,0.0001427,2]
[335654579,1724402947194,-500.0,0.0001427,2]
[335654580,1724402947215,-500.0,0.0001427,2]
[335654581,1724402947237,-500.0,0.0001427,2]
[335654582,1724402947258,-500.0,0.0001427,2]
[335654583,1724402947280,-500.0,0.0001427,2]
[335654584,1724402947301,-500.0,0.0001427,2]
[335654585,1724402947323,-500.0,0.0001427,2]
[335654586,1724402947345,-500.0,0.0001427,2]
[335654587,1724402947367,-380.65490805,0.0001427,2]
[335654588,1724402947389,-500.0,0.0001427,2]
[335654589,1724402947415,-500.0,0.0001427,2]
[335654590,1724402947438,-500.0,0.0001427,2]
[335654591,1724402947465,-500.0,0.0001427,2]
[335654592,1724402947488,-500.0,0.0001427,2]
[335654593,1724402947510,-500.0,0.0001427,2]
[335654594,1724402947532,-500.0,0.0001427,2]
[335654595,1724402947553,-500.0,0.0001427,2]
[335654596,1724402947576,-500.0,0.0001427,2]
[335654597,1724402947598,-500.0,0.0001427,2]
[335654598,1724402947620,-500.0,0.0001427,2]
[335654599,1724402947642,-275.38827981,0.0001427,2]